Cogmind - Beta 12 @@@ ROGUE MODE // 2023.10.25 @ 21:43:02 Player: FrostySpirit Result: Destroyed by S-10 Pest with Light Assault Rifle Performance ------------- Evolutions (2) 1000 Regions Visited (5) 1000 Robots Destroyed (15) 75 Value Destroyed (624) 624 Prototype IDs (0) 0 Alien Tech Used (0) 0 Bonus (0) 0 TOTAL SCORE: 2699 Bonus ------- None Cogmind --------- Core Integrity 0/550 Matter 300/300 Energy 299/300 System Corruption 0% Temperature Cool (0) Movement Core (50) Location -8/Materials Parts ------- > --- POWER (1) -------- (None) > --- PROPULSION (2) --- (None) > --- UTILITY (6) ------ Large Battery Visual Processing Unit > --- WEAPON (2) ------- (None) > --- INVENTORY (5) ---- Ion Engine Airjet Cooling System Visual Processing Unit Datajack Peak State ------------ > --- POWER ------------ Light Nuclear Core > --- PROPULSION ------- Carbon-fiber Leg Carbon-fiber Leg > --- UTILITY ---------- Improved Heat Sink Small Storage Unit Large Battery Visual Processing Unit Sensor Array Medium Armor Plating > --- WEAPON ----------- Spread Laser Pulse Rifle > --- INVENTORY -------- Ion Engine Light Treads Airjet Cooling System Large Battery Compact Matter Pod Visual Processing Unit Datajack [Rating: 25] Favorites ----------- Power Ion Engine Engine Ion Engine Power Core Light Nuclear Core Propulsion Light Treads Treads Light Treads Leg Aluminum Leg Utility Small Storage Unit Device Improved Heat Sink Storage Small Storage Unit Processor Visual Processing Unit Protection Medium Armor Plating Weapon Spread Laser Energy Gun Spread Laser Build | -11 -10 -10 -9 -9 -8 ------- Run | Jun Mat Min Mat Min Mat Slots Evolved 4 | . . . 2 . 2 Power . | . . . . . . Propulsion . | . . . . . . Utility 4 | . . . 2 . 2 Weapon . | . . . . . . Parts Attached 28 | 6 4 1 5 3 9 Power 5 | 1 . 1 1 . 2 Engine 3 | 1 . 1 1 . . Core 2 | . . . . . 2 Reactor . | . . . . . . Propulsion 8 | 2 . . 2 1 3 Treads 4 | . . . 2 1 1 Leg 4 | 2 . . . . 2 Wheel . | . . . . . . Hover . | . . . . . . Flight . | . . . . . . Utility 9 | 1 2 . 2 1 3 Device 2 | . . . . . 2 Storage 4 | 1 1 . 1 . 1 Processor 1 | . 1 . . . . Hackware . | . . . . . . Protection 2 | . . . 1 1 . Artifact . | . . . . . . Weapon 6 | 2 2 . . 1 1 Energy Gun 6 | 2 2 . . 1 1 Energy Cannon . | . . . . . . Ballistic Gun . | . . . . . . Ballistic Cannon . | . . . . . . Launcher . | . . . . . . Special Weapon . | . . . . . . Impact Weapon . | . . . . . . Slashing Weapon . | . . . . . . Piercing Weapon . | . . . . . . Special Melee Weapon . | . . . . . . Unidentified Prototypes . | . . . . . . Parts Lost 13 | . . . 1 1 11 Power 2 | . . . 1 . 1 Propulsion 3 | . . . . . 3 Utility 6 | . . . . 1 5 Weapon 2 | . . . . . 2 Highest Loss Streak 11 | . . . 1 1 11 To Critical Strikes . | . . . . . . Average Slot Usage (%) 97 | . 98 100 99 98 90 Engine 9 | . 14 14 10 11 4 Treads 13 | . . . 11 22 10 Leg 7 | . 28 28 10 . 6 Device 3 | . . . . . 15 Storage 20 | . 19 14 22 22 17 Processor 10 | . 7 14 11 11 9 Protection 8 | . . . 11 9 7 Energy Gun 21 | . 28 28 22 22 15 Naked Turns . | . . . . . . Heaviest Build 28 | 12 17 14 26 26 28 Greatest Support 40 | 20 20 20 40 40 40 Greatest Overweight (x) 2 | 1 . . 1 . 2 Average Overweight (x) . | . . . . . . Largest Inventory Capacity 8 | 8 8 8 8 8 8 Average Capacity 7 | 7 8 8 8 8 7 Most Carried 8 | 4 8 8 7 5 8 Average Carried 5 | 3 6 7 5 4 6 Final Capacity 8 | 8 8 8 8 8 5 Final Carried 8 | 4 8 8 5 5 5 Class Distribution -------------------- 96% | Mutant 3% | Scavenger-Mutant Dominant Class ---------------- Mutant | -10/Materials Mutant | -10/Mines Mutant | -9/Materials Mutant | -9/Mines Mutant | -8/Materials Resources | -11 -10 -10 -9 -9 -8 ----------- Run | Jun Mat Min Mat Min Mat Matter Collected 464 | 254 . 46 60 30 74 Remotely . | . . . . . . Salvage Created 512 | . . 53 163 86 210 Parts 39 | . . 8 13 4 14 Haulers Intercepted . | . . . . . . Recyclers Shooed 1 | . . 1 . . . Parts Field Recycled . | . . . . . . Retrieved Matter . | . . . . . . Parts Self-Destructed . | . . . . . . Prevented . | . . . . . . Kills | -11 -10 -10 -9 -9 -8 ------- Run | Jun Mat Min Mat Min Mat Combat Hostiles Destroyed 15 | . . 2 5 3 5 Guns 15 | . . 2 5 3 5 Classes Destroyed 2 | . . 1 1 . . Grunt 12 | . . 2 4 3 3 Sentry 3 | . . . 1 . 2 Best Kill Streak 3 | . . 2 3 2 3 Combat Bots Only 3 | . . 2 3 2 3 Max Kills in Single Turn 1 | . . 1 1 1 1 Gunslinging . | . . . . . . Exploded . | . . . . . . Melee . | . . . . . . Uniques/NPCs Destroyed . | . . . . . . Combat | -11 -10 -10 -9 -9 -8 -------- Run | Jun Mat Min Mat Min Mat Damage Taken 1955 | . . 52 336 80 1487 Core 588 | . . 13 23 . 552 Absorbed by Shields . | . . . . . . Core Remaining (%) 96 | 100 . 94 . 94 . Volleys Fired 52 | . . 4 16 7 25 Largest 2 | . . 2 2 2 2 Hottest 130 | . . 130 130 130 130 Shots Fired 90 | . . 8 23 14 45 Gun 90 | . . 8 23 14 45 Cannon . | . . . . . . Launcher . | . . . . . . Special . | . . . . . . Kinetic . | . . . . . . Thermal 90 | . . 8 23 14 45 Explosive . | . . . . . . Electromagnetic . | . . . . . . Robot Hit Streak 11 | . . 10 7 11 10 Robot Miss Streak 7 | . . 2 7 7 7 Penetration Max . | . . . . . . Secondary Targets 1 | . . 1 . . . Max Gunslinging Chain 1 | . . 1 . . . Shots Hit Robots 77 | . . 6 21 12 38 Core Hits 102 | . . 12 26 23 41 Critical Kills . | . . . . . . Critical Parts Destroyed . | . . . . . . Critical Strikes . | . . . . . . Melee Attacks . | . . . . . . Impact . | . . . . . . Slashing . | . . . . . . Piercing . | . . . . . . Sneak Attacks . | . . . . . . Combat Hostiles . | . . . . . . Follow-up Attacks . | . . . . . . Damage Inflicted 1094 | . . 89 238 193 574 Guns 1086 | . . 89 238 185 574 Cannons . | . . . . . . Explosions . | . . . . . . Melee . | . . . . . . Ramming 8 | . . . . 8 . Kinetic . | . . . . . . Thermal 1086 | . . 89 238 185 574 Explosive . | . . . . . . Electromagnetic . | . . . . . . Impact . | . . . . . . Slashing . | . . . . . . Piercing . | . . . . . . Highest Corruption . | . . . . . . Average Corruption . | . . . . . . Corruption Purged . | . . . . . . Corruption Blocked . | . . . . . . Overload Shots . | . . . . . . Overflow Damage . | . . . . . . Projectiles . | . . . . . . Explosions . | . . . . . . Melee . | . . . . . . Knockbacks . | . . . . . . Impact . | . . . . . . Kinetic . | . . . . . . Secondary . | . . . . . . Self-Inflicted Damage . | . . . . . . Shots . | . . . . . . Rammed 1 | . . . . 1 . Targets Rammed 1 | . . . . 1 . Kicked . | . . . . . . Crushed . | . . . . . . Highest Temperature 228 | . . 228 225 207 217 Average Temperature 88 | . . 129 95 79 76 Received Heat Transfer 684 | . . 30 177 45 432 Effects 2 | . . . 2 . . Interference 2 | . . . 2 . . Siege Activations . | . . . . . . Robots Corrupted . | . . . . . . Combat Hostiles . | . . . . . . Parts Fried . | . . . . . . Impact Corruptions . | . . . . . . Robots Melted . | . . . . . . Combat Hostiles . | . . . . . . Parts Melted 1 | . . . . . 1 Heat Transferred 1481 | . . 115 305 225 836 Parts Sabotaged . | . . . . . . Parts Stolen . | . . . . . . Parts Stripped . | . . . . . . Power Chain Reactions . | . . . . . . Missiles Intercepted . | . . . . . . Alert | -11 -10 -10 -9 -9 -8 ------- Run | Jun Mat Min Mat Min Mat Peak Influence 221 | . 15 55 221 70 160 Initial 21 | . . 5 21 7 . Average 57 | . 10 18 112 30 66 Maximum Alert Level 1 | . . . 1 . . Low Security (%) 92 | 100 100 100 74 100 100 Level 1 7 | . . . 25 . . Level 2 . | . . . . . . Level 3 . | . . . . . . Level 4 . | . . . . . . Level 5 . | . . . . . . High Security . | . . . . . . Max Security . | . . . . . . Squads Dispatched 7 | . . . 4 . 3 Investigation 3 | . . . 3 . . Extermination . | . . . . . . Reinforcement 2 | . . . 1 . 1 Assault . | . . . . . . Garrison 2 | . . . . . 2 Intercept . | . . . . . . Searches Triggered . | . . . . . . Construction Impeded . | . . . . . . Haulers Reinforced . | . . . . . . Active Scanning Responses . | . . . . . . Cargo Convoy Interrupts . | . . . . . . Stealth | -11 -10 -10 -9 -9 -8 --------- Run | Jun Mat Min Mat Min Mat Distress Signals 5 | . . . 3 . 2 Communications Jammed . | . . . . . . Distress Signals . | . . . . . . Times Spotted 35 | . 1 2 13 2 17 Peak Tracking Total 11 | . 1 2 8 2 11 Tactical Retreats . | . . . . . . Traps | -11 -10 -10 -9 -9 -8 ------- Run | Jun Mat Min Mat Min Mat Traps Triggered . | . . . . . . Indirectly . | . . . . . . Trap Hack Attempts . | . . . . . . Triggered . | . . . . . . Disarmed . | . . . . . . Reprogrammed 6 | . . . 6 . . Reused 2 | . . . 2 . . Traps Extracted . | . . . . . . Installed . | . . . . . . Triggered 2 | . . . 2 . . Machines | -11 -10 -10 -9 -9 -8 ---------- Run | Jun Mat Min Mat Min Mat Machines Disabled . | . . . . . . Max in Single Turn . | . . . . . . Machines Repaired . | . . . . . . Machines Sabotaged . | . . . . . . Overloaded Fab Kills . | . . . . . . Hacking | -11 -10 -10 -9 -9 -8 --------- Run | Jun Mat Min Mat Min Mat Machines Accessed 4 | . . . 4 . . Terminals 4 | . . . 4 . . Fabricators . | . . . . . . Repair Stations . | . . . . . . Recycling Units . | . . . . . . Scanalyzers . | . . . . . . Garrison Access . | . . . . . . Total Hacks 12 | . . . 12 . . Successful 7 | . . . 7 . . Failed 5 | . . . 5 . . Catastrophic 1 | . . . 1 . . Database Lockouts . | . . . . . . Manual . | . . . . . . Terminals 12 | . . . 12 . . Fabricators . | . . . . . . Repair Stations . | . . . . . . Recycling Units . | . . . . . . Scanalyzers . | . . . . . . Garrison Access . | . . . . . . Terminal Hacks 7 | . . . 7 . . Level Access Points 1 | . . . 1 . . Branch Access Points 1 | . . . 1 . . Locate Traps 1 | . . . 1 . . Reprogram Traps 1 | . . . 1 . . Investigation Status 1 | . . . 1 . . Assault Status 1 | . . . 1 . . Recall Investigation 1 | . . . 1 . . Fabricator Hacks . | . . . . . . Repair Station Hacks . | . . . . . . Recycling Unit Hacks . | . . . . . . Scanalyzer . | . . . . . . Garrison Access Hacks . | . . . . . . Unauthorized Hacks . | . . . . . . Terminals . | . . . . . . Fabricators . | . . . . . . Repair Stations . | . . . . . . Recycling Units . | . . . . . . Scanalyzers . | . . . . . . Garrison Access . | . . . . . . Data Cores Recovered . | . . . . . . Used . | . . . . . . Hacking Detections 4 | . . . 4 . . Full Trace Events 4 | . . . 4 . . Feedback Events . | . . . . . . Feedback Blocked . | . . . . . . Robot Schematics Acquired . | . . . . . . Robots Built . | . . . . . . Authchips . | . . . . . . Time . | . . . . . . Total Robot Build Rating . | . . . . . . Part Schematics Acquired . | . . . . . . Parts Built . | . . . . . . Authchips . | . . . . . . Time . | . . . . . . Total Part Build Rating . | . . . . . . Parts Repaired . | . . . . . . Time . | . . . . . . Parts Recycled . | . . . . . . Recycled Matter . | . . . . . . Retrieved Matter . | . . . . . . Retrieved Components . | . . . . . . Parts Scanalyzed . | . . . . . . Part Schematics Acquired . | . . . . . . Parts Damaged . | . . . . . . Bothacking | -11 -10 -10 -9 -9 -8 ------------ Run | Jun Mat Min Mat Min Mat Used RIF Installer . | . . . . . . Robots Hacked . | . . . . . . Non-combat . | . . . . . . Combat . | . . . . . . Robot Hacks Applied . | . . . . . . Relay Couplers Released . | . . . . . . Fabnet Peak Effective % . | . . . . . . Robots Rewired . | . . . . . . Allies Hacked . | . . . . . . Hacks Repelled . | . . . . . . Allies | -11 -10 -10 -9 -9 -8 -------- Run | Jun Mat Min Mat Min Mat Total Allies 2 | . . . . 2 . Largest Group 2 | . . . . 2 2 Highest-Rated Group 32 | . . . . 32 32 Highest-Rated Ally 16 | . . . . 16 16 Total Orders 2 | . . . . 1 1 ROAM 1 | . . . . . 1 AID 1 | . . . . 1 . Ally Attacks 1 | . . . . . 1 Total Damage 17 | . . . . . 17 Kills . | . . . . . . Allies Corrupted . | . . . . . . Allies Melted . | . . . . . . Intel | -11 -10 -10 -9 -9 -8 ------- Run | Jun Mat Min Mat Min Mat Robot Analysis Total . | . . . . . . Derelict Logs Recovered 2 | . . . . 2 . Drone Launches . | . . . . . . Drone Recoveries . | . . . . . . Exploration | -11 -10 -10 -9 -9 -8 ------------- Run | Jun Mat Min Mat Min Mat Turns Passed 1429 | 73 97 60 410 525 264 Spaces Moved 774 | 48 70 38 195 304 119 Core 14 | 4 . . . . 10 Treads 487 | . . . 114 304 69 Legs 273 | 44 70 38 81 . 40 Wheels . | . . . . . . Hover . | . . . . . . Flight . | . . . . . . Fastest Speed 50 | 50 120 120 160 160 50 Average Speed 152 | 125 120 120 172 160 141 Slowest Speed 190 | 190 120 120 190 160 190 Overloaded Moves . | . . . . . . Propulsion Burnouts . | . . . . . . Robots Hopped . | . . . . . . Cave-ins Triggered . | . . . . . . Exploration Rate (%) 19 | 4 14 12 25 53 11 Regions Visited 5 Branch Regions 2 Pre-discovered Areas 1 | . . 1 . . . Known Exits Taken 2 | . . . 1 1 . Unknown Exits Taken 3 | 1 1 1 . . . Scrap Searched 1 | . . . . 1 . Spaces Dug . | . . . . . . Terrain Destroyed . | . . . . . . Melee . | . . . . . . Projectile . | . . . . . . AOE . | . . . . . . Terrain Rammed . | . . . . . . Walls Destroyed . | . . . . . . Machines Disabled . | . . . . . . Actions | -11 -10 -10 -9 -9 -8 --------- Run | Jun Mat Min Mat Min Mat Total 927 | 57 83 44 245 328 170 Wait 46 | . . . 27 12 7 Move 769 | 47 69 37 194 303 119 Hop . | . . . . . . Pick Up 18 | 4 6 1 1 1 5 Fast Attach 13 | 6 3 . 1 . 3 Attach 7 | . . . 2 1 4 Detach . | . . . . . . Swap 8 | . 1 1 2 2 2 Drop 13 | . 4 1 2 1 5 Fire 52 | . . 4 16 7 25 Melee . | . . . . . . Ram . | . . . . . . Kick . | . . . . . . Crush 1 | . . . . 1 . Escape Stasis . | . . . . . . Rewire . | . . . . . . Trap . | . . . . . . Miscellaneous . | . . . . . . Route ------- -11/Junkyard -10/Materials -10/Mines -9/Materials (discovered 5 exits: Mat x3 / *Min x2) -9/Mines -8/Materials (discovered 1 exit: Fac) History --------- Turn | Location | Event 47 | -11/Junkyard | Discovered new exit (range 14) 74 | -11/Junkyard | Entered Materials 89 | -10/Materials | Discovered new exit (range 16) 171 | -10/Materials | Entered Mines 172 | -10/Mines | Learned location of Storage (-7) 200 | -10/Mines | Discovered new exit (range 9) 231 | -10/Mines | Entered Materials 231 | -9/Materials | Evolved 2 slots: Utility x2 310 | -9/Materials | Build established: Mutant 317 | -9/Materials | Identified exit to Materials 460 | -9/Materials | Identified exit to Mines 641 | -9/Materials | Entered Mines 645 | -9/Mines | Met a Derelict bent on vengeance 648 | -9/Mines | Learned Materials stockpile data 669 | -9/Mines | Learned location of 1 exit from Materials 1018 | -9/Mines | Assisted by bots powering up and referring to "LRC-V3" 1158 | -9/Mines | Discovered exit to Materials (range 6) 1166 | -9/Mines | Entered Materials 1166 | -8/Materials | Accompanied by 2 allies 1166 | -8/Materials | Evolved 2 slots: Utility x2 1167 | -8/Materials | Identified exit to Factory 1274 | -8/Materials | Garrison activated, responded to threat 1414 | -8/Materials | Core integrity fell below 50% 1423 | -8/Materials | Core integrity fell below 20% 1430 | -8/Materials | Destroyed by S-10 Pest with Light Assault Rifle Last Messages --------------- 01404_ Lrg. Battery destroyed. 01406_ Lgt. Nuclear Core destroyed. 01408_ K-01 Serf collects debris. 01409_ Pulse Rifle destroyed. 01409_ L-31 Rogue suffers critical hit (Burn). 01410_ K-01 Serf suffers critical hit (Burn). 01411_ K-01 Serf collects debris. 01415_ Slug penetrates L-31 Rogue. 01417_ Critical hit (Burn: +37). 01418_ H-55 Commando heat spikes uncontrollably. 01419_ Critical hit (Burn: +37). 01421_ H-55 Commando heat short circuits Assault Rifle. 01421_ Lgt. Treads destroyed. 01422_ Penetrated by Slug. 01425_ H-55 Commando heat spikes uncontrollably. 01426_ Imp. Heat Sink destroyed. 01426_ S-10 Pest destroyed. 01427_ K-01 Serf collects debris. 01427_ Sml. Storage Unit destroyed. 01429_ L-31 Rogue destroyed. Map ----- +----------------------------------------------------+ | ?????????????????????????????????????????????????? | | ?????????????????????????????????????????????????? | | ?????????????????????????????????????????????????? | | ?????????????????????????????????????????????????? | | ?????????????????????????????????????????????????? | | ?????????????????????????????????????????????????? | | ?????????????????????????????????????????????????? | | ?????????????????????????????????????????????????? | | ?????????????????????????????????????????????????? | | ?????????????????????????????????????????????????? | | ?????????????????????????????????????????????????? | | ?????????????????????????????????????????????????? | | ?????????????????????????????????????????????????? | | ?????????????????????????????????????????????????? | | ?????????????????????????????????????????????????? | | ?????????????????????????????????????????????????? | | ############?????????????????????????????????????? | | [ #?????????????????????????????????????? | | ! """ """ #?????????????????????????????????????? | | """ """ #?????????????????????????????????????? | | ! """ """ #?????????????????????????????????????? | | #?????????????????????????????????????? | | [* #?????????????????????????????????????? | | ####+############################## ##?????????? | | ??# = hg *%g=!! u ??????? | | ??# =*!= g g g s% s @ ??????? | | ??#=[=[%=r k u ??????? | | ?#####+################# #############?????????? | | ?# !=%[% #???????????# #?????????????????????? | | ?# %%! #???????????# #?????????????????????? | | ?# #???????????# #?????????????????????? | | ?# #???????????# #?????????????????????? | | ##/#################???# #?????????????????????? | | # ?? ?????????????????????? | | # ?? ????????????????????? | | ?? ????????????????????? | | # ###########?????#######???????????????????? | | # #?????????????????????????????????????????? | | # #?????????????????????????????????????????? | | # #?????????????????????????????????????????? | | # #?????????????????????????????????????????? | | # #?????????????????????????????????????????? | | # #?????????????????????????????????????????? | | #?#?????????????????????????????????????????? | | #???????????????????????????????????????????? | | ######???????????????????????????????????????????? | | ?????????????????????????????????????????????????? | | ?????????????????????????????????????????????????? | | ?????????????????????????????????????????????????? | | ?????????????????????????????????????????????????? | +----------------------------------------------------+ Best States ------------- Heat Dissipation 45 Energy Generation 14 Energy Capacity 450 Matter Stores 300 Matter Capacity 300 Sight Range 18 Robot Scan Range 14 Terrain Scan Density 10 Armor Coverage 225 Evasion (%) 55 Recoil Reduction 2 Item Schematics ----------------- None Robot Schematics ------------------ None Fabricated ------------ Nothing Alien Tech Used ----------------- None Achievements -------------- GoHome() Challenges ------------ None Game ------ Seed PhaseFortressScrap Manual? 0 Play Time 00:19:59 Cumulative 11.3 hours Start 2023.10.25 @ 16:19:04 End 2023.10.25 @ 21:43:02 Sessions 2 Manual Loads 0 Difficulty Rogue Special Mode None Game No. 18 Rogue 18 Adventurer 0 Explorer 0 Win Type - Total 0 Types 0/0/0/0/0/0/0/0/0 Lore% 6 Gallery% 20 Achievement% 16 Wizard Run 0 Options --------- ASCII 0 Keyboard 0 Movement Mouse Keybinds 0 Fullscreen 1 Font 18/TerminusBold Map View 76x50 Tactical HUD 1 Map Filters NONE Filters NONE Steam 1 RUN: 3a949599-6d10-4e4d-9412-f3a7733ff82e